[Event "Titled Tuesday Blitz August 22 Late 2023"]
[White "Pakleza, Zbigniew"]
[Black "Nihal Sarin"]
[WhiteFideId "1119290"]
[BlackFideId "25092340"]
[WhiteElo "2881"]
[BlackElo "3143"]
[Result "0-1"]
[Round "11"]
[TimeControl "180+1"]
[Date "2023.08.22"]
[WhiteClock "0:00:00"]
[BlackClock "0:00:53"]
[Board "7"]

1. d4 {[%clk 0:03:00]}  a6 {[%clk 0:02:53]} 2. e4 {[%clk 0:03:00]}  c6 {[%clk 0:02:52]} 3. Bd3 {[%clk 0:02:44]}  d5 {[%clk 0:02:51]} 4. exd5 {[%clk 0:02:44]}  cxd5 {[%clk 0:02:50]} 5. c3 {[%clk 0:02:42]}  Nc6 {[%clk 0:02:50]} 6. Bf4 {[%clk 0:02:41]}  g6 {[%clk 0:02:40]} 7. Nd2 {[%clk 0:02:37]}  Bf5 {[%clk 0:02:40]} 8. Bxf5 {[%clk 0:02:35]}  gxf5 {[%clk 0:02:41]} 9. Ngf3 {[%clk 0:02:35]}  e6 {[%clk 0:02:42]} 10. O-O {[%clk 0:02:33]}  Nf6 {[%clk 0:02:42]} 11. h3 {[%clk 0:02:33]}  Rg8 {[%clk 0:02:43]} 12. Re1 {[%clk 0:02:30]}  Bd6 {[%clk 0:02:43]} 13. Bxd6 {[%clk 0:02:26]}  Qxd6 {[%clk 0:02:44]} 14. Ne5 {[%clk 0:02:26]}  Ne4 {[%clk 0:02:37]} 15. Ndf3 {[%clk 0:01:54]}  f6 {[%clk 0:02:29]} 16. Nxc6 {[%clk 0:01:41]}  bxc6 {[%clk 0:02:30]} 17. Qe2 {[%clk 0:01:30]}  Ra7 {[%clk 0:02:28]} 18. Kf1 {[%clk 0:01:15]}  Rag7 {[%clk 0:02:23]} 19. Qxa6 {[%clk 0:00:35]}  Rxg2 {[%clk 0:02:24]} 20. Qc8+ {[%clk 0:00:35]}  Ke7 {[%clk 0:01:51]} 21. Qb7+ {[%clk 0:00:32]}  Kd8 {[%clk 0:01:52]} 22. Qa8+ {[%clk 0:00:29]}  Kd7 {[%clk 0:01:46]} 23. Qb7+ {[%clk 0:00:26]}  Qc7 {[%clk 0:01:46]} 24. Qxc7+ {[%clk 0:00:26]}  Kxc7 {[%clk 0:01:47]} 25. Re2 {[%clk 0:00:27]}  R2g6 {[%clk 0:01:43]} 26. a4 {[%clk 0:00:15]}  Rh6 {[%clk 0:01:42]} 27. Ng1 {[%clk 0:00:14]}  f4 {[%clk 0:01:41]} 28. Rc2 {[%clk 0:00:10]}  f3 {[%clk 0:01:28]} 29. a5 {[%clk 0:00:07]}  e5 {[%clk 0:01:13]} 30. a6 {[%clk 0:00:06]}  Nd6 {[%clk 0:01:13]} 31. Nxf3 {[%clk 0:00:04]}  Rxh3 {[%clk 0:01:13]} 32. dxe5 {[%clk 0:00:04]}  Rh1+ {[%clk 0:01:07]} 33. Ke2 {[%clk 0:00:05]}  Rxa1 {[%clk 0:01:08]} 34. exd6+ {[%clk 0:00:05]}  Kxd6 {[%clk 0:01:08]} 35. Nd4 {[%clk 0:00:03]}  Rxa6 {[%clk 0:01:09]} 36. b4 {[%clk 0:00:03]}  c5 {[%clk 0:01:05]} 37. bxc5+ {[%clk 0:00:02]}  Kxc5 {[%clk 0:01:06]} 38. Rd2 {[%clk 0:00:02]}  h5 {[%clk 0:01:02]} 39. Nf5 {[%clk 0:00:02]}  Re6+ {[%clk 0:01:01]} 40. Kf3 {[%clk 0:00:02]}  Re5 {[%clk 0:01:00]} 41. Ne3 {[%clk 0:00:02]}  h4 {[%clk 0:00:58]} 42. Rd4 {[%clk 0:00:02]}  Rh5 {[%clk 0:00:58]} 43. Rd1 {[%clk 0:00:01]}  h3 {[%clk 0:00:58]} 44. Rh1 {[%clk 0:00:02]}  h2 {[%clk 0:00:58]} 45. Ng4 {[%clk 0:00:03]}  Rf5+ {[%clk 0:00:56]} 46. Kg3 {[%clk 0:00:02]}  Rfg5 {[%clk 0:00:56]} 47. f3 {[%clk 0:00:02]}  f5 {[%clk 0:00:57]} 48. Rxh2 {[%clk 0:00:02]}  fxg4 {[%clk 0:00:58]} 49. f4 {[%clk 0:00:03]}  R5g7 {[%clk 0:00:58]} 50. Rd2 {[%clk 0:00:02]}  Re7 {[%clk 0:00:57]} 51. Rd3 {[%clk 0:00:02]}  Rge8 {[%clk 0:00:53]} 52. Kxg4 {[%clk 0:00:02]}  Re3 {[%clk 0:00:54]} 53. Rd1 {[%clk 0:00:02]}  Rxc3 {[%clk 0:00:55]} 54. f5 {[%clk 0:00:02]}  Rf8 {[%clk 0:00:55]} 55. Rf1 {[%clk 0:00:02]}  d4 {[%clk 0:00:54]} 56. f6 {[%clk 0:00:02]}  d3 {[%clk 0:00:55]} 57. Kf5 {[%clk 0:00:02]}  d2 {[%clk 0:00:53]} 58. Rd1 {[%clk 0:00:02]}  Rd3 {[%clk 0:00:53]} 59. Ke6 {[%clk 0:00:01]}  Rd6+ {[%clk 0:00:53]} 60. Ke7 {[%clk 0:00:01]}  Rfxf6 {[%clk 0:00:53]} 61. Ra1 {[%clk 0:00:02]}  Rfe6+ {[%clk 0:00:52]} 62. Kf7 {[%clk 0:00:01]}  Re1 {[%clk 0:00:53]} 63. Ra5+ {[%clk 0:00:00]}  Kb6 {[%clk 0:00:53]} 0-1


[Site "https://www.chess.com"]

[Event "Titled Tuesday Blitz August 22 Late 2023"]
[White "Andreikin, Dmitry"]
[Black "Troff, Kayden"]
[WhiteFideId "4158814"]
[BlackFideId "2047896"]
[WhiteElo "2997"]
[BlackElo "2776"]
[Result "1-0"]
[Round "11"]
[TimeControl "180+1"]
[Date "2023.08.22"]
[WhiteClock "0:00:51"]
[BlackClock "0:00:01"]
[Board "8"]

1. d4 {[%clk 0:03:00]}  Nf6 {[%clk 0:02:57]} 2. c4 {[%clk 0:03:00]}  g6 {[%clk 0:02:58]} 3. Nc3 {[%clk 0:03:00]}  d5 {[%clk 0:02:58]} 4. cxd5 {[%clk 0:03:01]}  Nxd5 {[%clk 0:02:59]} 5. e4 {[%clk 0:03:00]}  Nxc3 {[%clk 0:02:58]} 6. bxc3 {[%clk 0:03:01]}  Bg7 {[%clk 0:02:58]} 7. Be3 {[%clk 0:03:01]}  c5 {[%clk 0:02:58]} 8. Qd2 {[%clk 0:03:02]}  Qa5 {[%clk 0:02:58]} 9. Nf3 {[%clk 0:02:59]}  O-O {[%clk 0:02:57]} 10. Rb1 {[%clk 0:02:59]}  b6 {[%clk 0:02:48]} 11. Bd3 {[%clk 0:02:55]}  Ba6 {[%clk 0:02:44]} 12. Bxa6 {[%clk 0:02:37]}  Qxa6 {[%clk 0:02:33]} 13. Bh6 {[%clk 0:02:30]}  cxd4 {[%clk 0:02:20]} 14. Bxg7 {[%clk 0:02:25]}  Kxg7 {[%clk 0:02:20]} 15. cxd4 {[%clk 0:02:24]}  Nc6 {[%clk 0:02:13]} 16. d5 {[%clk 0:02:18]}  Na5 {[%clk 0:02:12]} 17. h4 {[%clk 0:02:17]}  Rac8 {[%clk 0:01:41]} 18. h5 {[%clk 0:02:12]}  Qc4 {[%clk 0:01:40]} 19. Rh4 {[%clk 0:02:01]}  Qc3 {[%clk 0:01:32]} 20. h6+ {[%clk 0:01:56]}  Kg8 {[%clk 0:01:29]} 21. Rd1 {[%clk 0:01:45]}  Qxd2+ {[%clk 0:01:21]} 22. Rxd2 {[%clk 0:01:45]}  Rc1+ {[%clk 0:01:20]} 23. Ke2 {[%clk 0:01:36]}  Rfc8 {[%clk 0:01:11]} 24. e5 {[%clk 0:01:34]}  Nc4 {[%clk 0:01:11]} 25. Rdd4 {[%clk 0:01:26]}  Rc2+ {[%clk 0:01:08]} 26. Kf1 {[%clk 0:01:25]}  Rc1+ {[%clk 0:01:03]} 27. Ke2 {[%clk 0:01:25]}  Rc2+ {[%clk 0:01:03]} 28. Kd3 {[%clk 0:01:24]}  Nb2+ {[%clk 0:00:58]} 29. Ke4 {[%clk 0:01:24]}  Rxf2 {[%clk 0:00:50]} 30. d6 {[%clk 0:01:24]}  exd6 {[%clk 0:00:49]} 31. exd6 {[%clk 0:01:23]}  Re2+ {[%clk 0:00:28]} 32. Kf4 {[%clk 0:01:23]}  f6 {[%clk 0:00:24]} 33. Kg3 {[%clk 0:01:15]}  Rd8 {[%clk 0:00:24]} 34. d7 {[%clk 0:00:58]}  Kf7 {[%clk 0:00:20]} 35. Rd6 {[%clk 0:00:54]}  b5 {[%clk 0:00:16]} 36. Rf4 {[%clk 0:00:51]}  Re6 {[%clk 0:00:15]} 37. Ng5+ {[%clk 0:00:50]}  Ke7 {[%clk 0:00:04]} 38. Rxe6+ {[%clk 0:00:50]}  Kxd7 {[%clk 0:00:01]} 39. Rfxf6 {[%clk 0:00:51]} 1-0


[Site "https://www.chess.com"]

[Event "Titled Tuesday Blitz August 22 Late 2023"]
[White "Paravyan, David"]
[Black "Mendez Fortes, Eduardo Jesus"]
[WhiteFideId "4194985"]
[BlackFideId "3502376"]
[WhiteElo "2973"]
[BlackElo "2681"]
[Result "1-0"]
[Round "11"]
[TimeControl "180+1"]
[Date "2023.08.22"]
[WhiteClock "0:02:17"]
[BlackClock "0:01:29"]
[Board "9"]

1. e4 {[%clk 0:03:00]}  c5 {[%clk 0:02:59]} 2. Nf3 {[%clk 0:03:00]}  d6 {[%clk 0:02:59]} 3. d4 {[%clk 0:03:00]}  cxd4 {[%clk 0:03:00]} 4. Nxd4 {[%clk 0:03:01]}  Nf6 {[%clk 0:03:00]} 5. Nc3 {[%clk 0:03:02]}  a6 {[%clk 0:03:00]} 6. f3 {[%clk 0:03:02]}  e5 {[%clk 0:02:59]} 7. Nb3 {[%clk 0:03:02]}  Be7 {[%clk 0:03:00]} 8. Be3 {[%clk 0:03:02]}  Be6 {[%clk 0:02:59]} 9. Qd2 {[%clk 0:03:02]}  h5 {[%clk 0:02:59]} 10. Nd5 {[%clk 0:03:01]}  Nxd5 {[%clk 0:02:57]} 11. exd5 {[%clk 0:03:02]}  Bf5 {[%clk 0:02:58]} 12. Be2 {[%clk 0:03:02]}  Nd7 {[%clk 0:02:52]} 13. O-O {[%clk 0:03:01]}  a5 {[%clk 0:02:53]} 14. a4 {[%clk 0:03:01]}  O-O {[%clk 0:02:46]} 15. f4 {[%clk 0:03:01]}  Be4 {[%clk 0:02:46]} 16. Bxh5 {[%clk 0:03:00]}  Qc7 {[%clk 0:02:45]} 17. fxe5 {[%clk 0:02:47]}  Nxe5 {[%clk 0:02:22]} 18. Nd4 {[%clk 0:02:44]}  Nc4 {[%clk 0:02:12]} 19. Qc3 {[%clk 0:02:44]}  Qc8 {[%clk 0:02:01]} 20. Rae1 {[%clk 0:02:21]}  Bxd5 {[%clk 0:01:50]} 21. Nf5 {[%clk 0:02:18]}  Bf6 {[%clk 0:01:40]} 22. Nh6+ {[%clk 0:02:18]}  Kh8 {[%clk 0:01:37]} 23. Rxf6 {[%clk 0:02:18]}  gxf6 {[%clk 0:01:31]} 24. Qxf6+ {[%clk 0:02:18]}  Kh7 {[%clk 0:01:29]} 25. Nf5 {[%clk 0:02:17]} 1-0


[Site "https://www.chess.com"]

[Event "Titled Tuesday Blitz August 22 Late 2023"]
[White "Kravtsiv, Martyn"]
[Black "Ozkan, Taha"]
[WhiteFideId "14113147"]
[BlackFideId "34577173"]
[WhiteElo "2905"]
[BlackElo "2667"]
[Result "1-0"]
[Round "11"]
[TimeControl "180+1"]
[Date "2023.08.22"]
[WhiteClock "0:01:32"]
[BlackClock "0:01:00"]
[Board "10"]

1. e4 {[%clk 0:03:00]}  e6 {[%clk 0:02:58]} 2. d4 {[%clk 0:03:00]}  d5 {[%clk 0:02:59]} 3. e5 {[%clk 0:03:00]}  c5 {[%clk 0:02:59]} 4. c3 {[%clk 0:03:01]}  Qb6 {[%clk 0:03:00]} 5. Nf3 {[%clk 0:03:01]}  Nc6 {[%clk 0:03:00]} 6. Be2 {[%clk 0:03:00]}  cxd4 {[%clk 0:02:57]} 7. cxd4 {[%clk 0:02:59]}  Nh6 {[%clk 0:02:58]} 8. Bxh6 {[%clk 0:02:56]}  Qxb2 {[%clk 0:02:58]} 9. O-O {[%clk 0:02:55]}  Qxa1 {[%clk 0:02:53]} 10. Qb3 {[%clk 0:02:55]}  gxh6 {[%clk 0:02:43]} 11. Nc3 {[%clk 0:02:47]}  Qxf1+ {[%clk 0:02:40]} 12. Kxf1 {[%clk 0:02:44]}  a6 {[%clk 0:02:35]} 13. Qc2 {[%clk 0:02:16]}  Bd7 {[%clk 0:02:34]} 14. Na4 {[%clk 0:02:15]}  Nb4 {[%clk 0:02:18]} 15. Qb3 {[%clk 0:02:14]}  Bb5 {[%clk 0:01:42]} 16. Nc5 {[%clk 0:01:54]}  Bxe2+ {[%clk 0:01:25]} 17. Kxe2 {[%clk 0:01:53]}  Bxc5 {[%clk 0:01:19]} 18. dxc5 {[%clk 0:01:54]}  a5 {[%clk 0:01:18]} 19. a3 {[%clk 0:01:52]}  Na6 {[%clk 0:01:18]} 20. Qb5+ {[%clk 0:01:43]}  Kf8 {[%clk 0:01:18]} 21. Nd4 {[%clk 0:01:41]}  Kg7 {[%clk 0:01:13]} 22. Nxe6+ {[%clk 0:01:39]}  fxe6 {[%clk 0:01:12]} 23. Qd7+ {[%clk 0:01:40]}  Kg6 {[%clk 0:01:03]} 24. Qxe6+ {[%clk 0:01:40]}  Kg7 {[%clk 0:01:03]} 25. Qe7+ {[%clk 0:01:39]}  Kg8 {[%clk 0:01:01]} 26. Qxb7 {[%clk 0:01:32]}  Re8 {[%clk 0:01:01]} 27. Qxa6 {[%clk 0:01:32]}  Rxe5+ {[%clk 0:01:00]} 28. Kd3 {[%clk 0:01:32]} 1-0


[Site "https://www.chess.com"]

[Event "Titled Tuesday Blitz August 22 Late 2023"]
[White "Jaracz, Pawel"]
[Black "Svane, Rasmus"]
[WhiteFideId "1102222"]
[BlackFideId "4657101"]
[WhiteElo "2738"]
[BlackElo "2980"]
[Result "0-1"]
[Round "11"]
[TimeControl "180+1"]
[Date "2023.08.22"]
[WhiteClock "0:00:10"]
[BlackClock "0:00:24"]
[Board "12"]

1. e4 {[%clk 0:02:54]}  c6 {[%clk 0:02:59]} 2. d4 {[%clk 0:02:53]}  d5 {[%clk 0:03:00]} 3. e5 {[%clk 0:02:52]}  Bf5 {[%clk 0:03:00]} 4. c4 {[%clk 0:02:48]}  e6 {[%clk 0:02:59]} 5. Nc3 {[%clk 0:02:48]}  Ne7 {[%clk 0:02:59]} 6. a3 {[%clk 0:02:47]}  Nd7 {[%clk 0:02:58]} 7. cxd5 {[%clk 0:02:46]}  Nxd5 {[%clk 0:02:56]} 8. Nxd5 {[%clk 0:02:45]}  cxd5 {[%clk 0:02:57]} 9. Bd3 {[%clk 0:02:46]}  Bg6 {[%clk 0:02:51]} 10. Ne2 {[%clk 0:02:41]}  Qa5+ {[%clk 0:02:43]} 11. Bd2 {[%clk 0:02:39]}  Qb6 {[%clk 0:02:43]} 12. Bc3 {[%clk 0:02:39]}  Bxd3 {[%clk 0:02:40]} 13. Qxd3 {[%clk 0:02:38]}  Qa6 {[%clk 0:02:41]} 14. Qg3 {[%clk 0:02:37]}  g6 {[%clk 0:02:36]} 15. h4 {[%clk 0:02:36]}  h5 {[%clk 0:02:35]} 16. Qf3 {[%clk 0:02:30]}  Be7 {[%clk 0:02:33]} 17. g3 {[%clk 0:02:25]}  Nb8 {[%clk 0:02:23]} 18. Kf1 {[%clk 0:02:22]}  Nc6 {[%clk 0:02:23]} 19. Kg2 {[%clk 0:02:22]}  Kd7 {[%clk 0:02:20]} 20. Nf4 {[%clk 0:02:06]}  Raf8 {[%clk 0:02:12]} 21. Rac1 {[%clk 0:02:04]}  Qb5 {[%clk 0:01:57]} 22. Rc2 {[%clk 0:02:02]}  Rc8 {[%clk 0:01:56]} 23. Rhc1 {[%clk 0:01:57]}  Rhf8 {[%clk 0:01:55]} 24. Kh3 {[%clk 0:01:50]}  Rc7 {[%clk 0:01:54]} 25. Kg2 {[%clk 0:01:31]}  Rfc8 {[%clk 0:01:53]} 26. Rd1 {[%clk 0:01:21]}  Ke8 {[%clk 0:01:51]} 27. g4 {[%clk 0:01:21]}  hxg4 {[%clk 0:01:28]} 28. Qxg4 {[%clk 0:01:21]}  Kd7 {[%clk 0:01:25]} 29. Rd3 {[%clk 0:01:12]}  Rh8 {[%clk 0:01:23]} 30. Rh3 {[%clk 0:01:12]}  Nxd4 {[%clk 0:01:17]} 31. Rd2 {[%clk 0:00:54]}  Nf5 {[%clk 0:01:16]} 32. Nxd5 {[%clk 0:00:53]}  exd5 {[%clk 0:00:59]} 33. a4 {[%clk 0:00:45]}  Qc6 {[%clk 0:00:23]} 34. e6+ {[%clk 0:00:44]}  Qxe6 {[%clk 0:00:23]} 35. Qf3 {[%clk 0:00:14]}  Nxh4+ {[%clk 0:00:23]} 36. Rxh4 {[%clk 0:00:10]}  Rxh4 {[%clk 0:00:24]} 0-1


[Site "https://www.chess.com"]

[Event "Titled Tuesday Blitz August 22 Late 2023"]
[White "Martinez Ramirez, Lennis"]
[Black "Zhigalko, Sergei"]
[WhiteFideId "3509079"]
[BlackFideId "13502956"]
[WhiteElo "2741"]
[BlackElo "2955"]
[Result "1-0"]
[Round "11"]
[TimeControl "180+1"]
[Date "2023.08.22"]
[WhiteClock "0:01:15"]
[BlackClock "0:00:00"]
[Board "14"]

1. Nf3 {[%clk 0:03:00]}  d5 {[%clk 0:02:58]} 2. c4 {[%clk 0:03:01]}  d4 {[%clk 0:02:58]} 3. b4 {[%clk 0:03:01]}  Bg4 {[%clk 0:02:58]} 4. g3 {[%clk 0:03:01]}  e6 {[%clk 0:02:52]} 5. Bg2 {[%clk 0:03:00]}  c6 {[%clk 0:02:41]} 6. b5 {[%clk 0:02:53]}  Nf6 {[%clk 0:02:22]} 7. Ne5 {[%clk 0:02:50]}  Bd6 {[%clk 0:02:16]} 8. bxc6 {[%clk 0:02:50]}  bxc6 {[%clk 0:02:02]} 9. Nxg4 {[%clk 0:02:45]}  Nxg4 {[%clk 0:02:01]} 10. d3 {[%clk 0:02:45]}  Qa5+ {[%clk 0:01:20]} 11. Nd2 {[%clk 0:02:33]}  O-O {[%clk 0:01:07]} 12. O-O {[%clk 0:02:19]}  Rc8 {[%clk 0:00:39]} 13. Nb3 {[%clk 0:02:18]}  Qh5 {[%clk 0:00:23]} 14. h3 {[%clk 0:02:18]}  Ne5 {[%clk 0:00:21]} 15. Nxd4 {[%clk 0:02:15]}  Nbd7 {[%clk 0:00:21]} 16. Rb1 {[%clk 0:02:06]}  h6 {[%clk 0:00:15]} 17. Be3 {[%clk 0:02:04]}  Qg6 {[%clk 0:00:14]} 18. Qe1 {[%clk 0:01:56]}  Nc5 {[%clk 0:00:11]} 19. f4 {[%clk 0:01:52]}  Ned7 {[%clk 0:00:10]} 20. Nxc6 {[%clk 0:01:53]}  Kh8 {[%clk 0:00:08]} 21. g4 {[%clk 0:01:50]}  a6 {[%clk 0:00:05]} 22. Nd4 {[%clk 0:01:44]}  Rab8 {[%clk 0:00:04]} 23. f5 {[%clk 0:01:44]}  Qf6 {[%clk 0:00:03]} 24. fxe6 {[%clk 0:01:43]}  Qe5 {[%clk 0:00:04]} 25. Bf4 {[%clk 0:01:19]}  Qxd4+ {[%clk 0:00:04]} 26. e3 {[%clk 0:01:19]}  Qxd3 {[%clk 0:00:03]} 27. exd7 {[%clk 0:01:17]}  Nxd7 {[%clk 0:00:02]} 28. Rd1 {[%clk 0:01:15]}  Qxc4 {[%clk 0:00:01]} 29. Rxd6 {[%clk 0:01:15]}  Nf6 {[%clk 0:00:01]} 30. Rxf6 {[%clk 0:01:15]}  gxf6 {[%clk 0:00:00]} 31. Qh4 {[%clk 0:01:15]} 1-0


[Site "https://www.chess.com"]

[Event "Titled Tuesday Blitz August 22 Late 2023"]
[White "Dominguez Perez, Leinier"]
[Black "Alex_Sahakyan2006"]
[WhiteFideId "3503240"]
[WhiteElo "2917"]
[BlackElo "2688"]
[Result "1-0"]
[Round "11"]
[TimeControl "180+1"]
[Date "2023.08.22"]
[WhiteClock "0:00:07"]
[BlackClock "0:00:31"]
[Board "15"]

1. e4 {[%clk 0:03:00]}  c5 {[%clk 0:02:58]} 2. Nf3 {[%clk 0:03:00]}  Nc6 {[%clk 0:02:59]} 3. d4 {[%clk 0:02:59]}  cxd4 {[%clk 0:03:00]} 4. Nxd4 {[%clk 0:02:57]}  g6 {[%clk 0:03:00]} 5. c4 {[%clk 0:02:56]}  Nf6 {[%clk 0:02:58]} 6. Nc3 {[%clk 0:02:54]}  d6 {[%clk 0:02:52]} 7. f3 {[%clk 0:02:54]}  Nxd4 {[%clk 0:02:52]} 8. Qxd4 {[%clk 0:02:54]}  Bg7 {[%clk 0:02:53]} 9. Be3 {[%clk 0:02:54]}  O-O {[%clk 0:02:53]} 10. Qd2 {[%clk 0:02:54]}  a5 {[%clk 0:02:48]} 11. b3 {[%clk 0:02:49]}  Bd7 {[%clk 0:02:46]} 12. Rc1 {[%clk 0:02:48]}  Bc6 {[%clk 0:02:42]} 13. Be2 {[%clk 0:02:47]}  Nd7 {[%clk 0:02:33]} 14. O-O {[%clk 0:02:45]}  Nc5 {[%clk 0:02:33]} 15. Rb1 {[%clk 0:02:34]}  f5 {[%clk 0:02:19]} 16. exf5 {[%clk 0:02:34]}  Rxf5 {[%clk 0:02:18]} 17. Rf2 {[%clk 0:02:04]}  Qf8 {[%clk 0:01:58]} 18. Bd1 {[%clk 0:01:52]}  Qf6 {[%clk 0:01:52]} 19. Ne2 {[%clk 0:01:45]}  Rh5 {[%clk 0:01:26]} 20. Ng3 {[%clk 0:01:25]}  Rh4 {[%clk 0:01:24]} 21. Bg5 {[%clk 0:01:20]}  Qd4 {[%clk 0:01:25]} 22. Bxh4 {[%clk 0:01:12]}  Qxh4 {[%clk 0:01:23]} 23. Ne2 {[%clk 0:01:01]}  Rf8 {[%clk 0:01:14]} 24. Bc2 {[%clk 0:01:00]}  Kh8 {[%clk 0:01:05]} 25. Re1 {[%clk 0:00:46]}  Bh6 {[%clk 0:00:55]} 26. Qd4+ {[%clk 0:00:42]}  Qf6 {[%clk 0:00:50]} 27. Qxf6+ {[%clk 0:00:41]}  Rxf6 {[%clk 0:00:51]} 28. Nc3 {[%clk 0:00:37]}  Re6 {[%clk 0:00:36]} 29. Rfe2 {[%clk 0:00:30]}  Rxe2 {[%clk 0:00:35]} 30. Rxe2 {[%clk 0:00:31]}  e5 {[%clk 0:00:36]} 31. Be4 {[%clk 0:00:29]}  Ne6 {[%clk 0:00:29]} 32. Kf2 {[%clk 0:00:08]}  Nd4 {[%clk 0:00:30]} 33. Rb2 {[%clk 0:00:08]}  Bc1 {[%clk 0:00:23]} 34. Rb1 {[%clk 0:00:08]}  Ba3 {[%clk 0:00:23]} 35. Ne2 {[%clk 0:00:07]}  Ne6 {[%clk 0:00:18]} 36. Nc3 {[%clk 0:00:04]}  Bc5+ {[%clk 0:00:17]} 37. Kf1 {[%clk 0:00:04]}  Kg7 {[%clk 0:00:17]} 38. Rd1 {[%clk 0:00:02]}  Nd4 {[%clk 0:00:15]} 39. Bxc6 {[%clk 0:00:02]}  bxc6 {[%clk 0:00:16]} 40. Ne2 {[%clk 0:00:02]}  Ba3 {[%clk 0:00:17]} 41. Nxd4 {[%clk 0:00:03]}  exd4 {[%clk 0:00:18]} 42. Rxd4 {[%clk 0:00:03]}  Kf6 {[%clk 0:00:18]} 43. Rd3 {[%clk 0:00:03]}  Ke5 {[%clk 0:00:18]} 44. Ke2 {[%clk 0:00:04]}  Bc5 {[%clk 0:00:19]} 45. g3 {[%clk 0:00:04]}  g5 {[%clk 0:00:19]} 46. Rd1 {[%clk 0:00:03]}  h5 {[%clk 0:00:19]} 47. Kd3 {[%clk 0:00:04]}  Bf2 {[%clk 0:00:19]} 48. Rd2 {[%clk 0:00:04]}  Bc5 {[%clk 0:00:19]} 49. Re2+ {[%clk 0:00:05]}  Kf6 {[%clk 0:00:19]} 50. Re8 {[%clk 0:00:05]}  Bg1 {[%clk 0:00:19]} 51. h3 {[%clk 0:00:04]}  Bf2 {[%clk 0:00:19]} 52. g4 {[%clk 0:00:04]}  h4 {[%clk 0:00:20]} 53. Rc8 {[%clk 0:00:04]}  c5 {[%clk 0:00:20]} 54. Re8 {[%clk 0:00:04]}  Bg3 {[%clk 0:00:19]} 55. Ke4 {[%clk 0:00:04]}  Be1 {[%clk 0:00:19]} 56. Ra8 {[%clk 0:00:04]}  Ke6 {[%clk 0:00:18]} 57. Re8+ {[%clk 0:00:03]}  Kf7 {[%clk 0:00:18]} 58. Rh8 {[%clk 0:00:03]}  Ke6 {[%clk 0:00:19]} 59. Rh6+ {[%clk 0:00:03]}  Ke7 {[%clk 0:00:19]} 60. Kd5 {[%clk 0:00:04]}  Bg3 {[%clk 0:00:20]} 61. Re6+ {[%clk 0:00:04]}  Kd7 {[%clk 0:00:21]} 62. Rg6 {[%clk 0:00:05]}  Bf4 {[%clk 0:00:21]} 63. Rg7+ {[%clk 0:00:05]}  Kd8 {[%clk 0:00:22]} 64. Kc6 {[%clk 0:00:06]}  Ke8 {[%clk 0:00:22]} 65. Rd7 {[%clk 0:00:06]}  Kf8 {[%clk 0:00:21]} 66. Rxd6 {[%clk 0:00:05]}  Bxd6 {[%clk 0:00:21]} 67. Kxd6 {[%clk 0:00:06]}  Kf7 {[%clk 0:00:22]} 68. Kxc5 {[%clk 0:00:05]}  Ke6 {[%clk 0:00:23]} 69. Kd4 {[%clk 0:00:06]}  Kd6 {[%clk 0:00:23]} 70. a3 {[%clk 0:00:05]}  a4 {[%clk 0:00:23]} 71. bxa4 {[%clk 0:00:05]}  Kc6 {[%clk 0:00:23]} 72. c5 {[%clk 0:00:06]}  Kb7 {[%clk 0:00:24]} 73. Kd5 {[%clk 0:00:06]}  Ka6 {[%clk 0:00:24]} 74. c6 {[%clk 0:00:06]}  Kb6 {[%clk 0:00:25]} 75. Kd6 {[%clk 0:00:06]}  Ka7 {[%clk 0:00:26]} 76. c7 {[%clk 0:00:06]}  Kb7 {[%clk 0:00:23]} 77. Kd7 {[%clk 0:00:06]}  Kb6 {[%clk 0:00:24]} 78. c8=Q {[%clk 0:00:06]}  Ka5 {[%clk 0:00:25]} 79. Qc3+ {[%clk 0:00:05]}  Ka6 {[%clk 0:00:25]} 80. Qb4 {[%clk 0:00:05]}  Ka7 {[%clk 0:00:26]} 81. Kc7 {[%clk 0:00:06]}  Ka8 {[%clk 0:00:26]} 82. Qb5 {[%clk 0:00:05]}  Ka7 {[%clk 0:00:27]} 83. a5 {[%clk 0:00:06]}  Ka8 {[%clk 0:00:27]} 84. a6 {[%clk 0:00:06]}  Ka7 {[%clk 0:00:26]} 85. Qb4 {[%clk 0:00:07]}  Ka8 {[%clk 0:00:26]} 86. f4 {[%clk 0:00:07]}  Ka7 {[%clk 0:00:25]} 87. fxg5 {[%clk 0:00:06]}  Ka8 {[%clk 0:00:26]} 88. g6 {[%clk 0:00:06]}  Ka7 {[%clk 0:00:26]} 89. g7 {[%clk 0:00:06]}  Ka8 {[%clk 0:00:27]} 90. a7 {[%clk 0:00:06]}  Kxa7 {[%clk 0:00:28]} 91. g8=Q {[%clk 0:00:06]}  Ka6 {[%clk 0:00:28]} 92. Qgc4+ {[%clk 0:00:07]}  Ka7 {[%clk 0:00:29]} 93. Qcc5+ {[%clk 0:00:07]}  Ka8 {[%clk 0:00:30]} 94. Qc6+ {[%clk 0:00:07]}  Ka7 {[%clk 0:00:31]} 95. Qa5# {[%clk 0:00:07]} 1-0


[Site "https://www.chess.com"]